bitfinex-derivatives/quotes_BTCF0:USTF0_20260207
["timestamp","ask_amount","ask_price","bid_price","bid_amount"]
[1770464803173,0.32216385,67929.0,67903.0,0.11758126]
[1770464803769,0.32216385,67929.0,67913.0,0.014737]
[1770464804678,0.32216385,67929.0,67910.0,0.014738]
[1770464804874,0.32029576,67925.0,67907.0,0.014738]
[1770464805563,0.32029576,67925.0,67905.0,0.014739]
[1770464805766,0.32029576,67925.0,67901.0,0.11758126]
[1770464805767,0.33503076,67925.0,67907.0,0.014738]
[1770464806172,0.32029576,67925.0,67909.0,0.014738]
[1770464807166,0.32029576,67925.0,67905.0,0.014739]
[1770464807572,0.32029576,67925.0,67907.0,0.014738]
[1770464808362,0.014736,67920.0,67899.0,0.17636369]
[1770464808575,0.30119697,67916.0,67892.0,0.17636369]
[1770464808974,0.30119697,67929.0,67899.0,0.13312071]
[1770464809174,0.30119697,67937.0,67924.0,0.014735]
[1770464809371,0.30119697,67937.0,67923.0,0.014735]
[1770464809674,0.30119697,67937.0,67927.0,0.14876351]
[1770464809871,0.30119697,67937.0,67920.0,0.14376986]
[1770464810077,0.30119697,67935.0,67910.0,0.014738]
[1770464810374,0.30119697,67933.0,67917.0,0.14905076]
[1770464810975,0.30119697,67933.0,67913.0,0.014737]
[1770464812674,0.30119697,67933.0,67910.0,0.15071572]
[1770464812871,0.30119697,67915.0,67893.0,0.014741]
[1770464813076,0.30119697,67913.0,67893.0,0.014741]
[1770464813867,0.30119697,67913.0,67896.0,0.014741]
[1770464814275,0.30119697,67913.0,67897.0,0.22110793]
[1770464814471,0.30119697,67913.0,67898.0,0.22110793]
[1770464814772,0.30119697,67913.0,67892.0,0.1760485]
[1770464814974,0.30119697,67913.0,67893.0,0.22211161]
[1770464815180,0.30119697,67913.0,67894.0,0.22111161]
[1770464815371,0.30119697,67913.0,67895.0,0.22111161]
[1770464815571,0.30119697,67913.0,67896.0,0.22111161]
[1770464815780,0.30119697,67913.0,67897.0,0.22111502]
[1770464815979,0.30119697,67913.0,67893.0,0.1760485]
[1770464816278,0.30119697,67913.0,67894.0,0.39715925]
[1770464816478,0.30119697,67911.0,67895.0,0.22111075]
[1770464816672,0.30119697,67911.0,67896.0,0.22111075]
[1770464816873,0.30119697,67911.0,67897.0,0.22111075]
[1770464817072,0.30119697,67911.0,67898.0,0.22111075]
[1770464817278,0.30119697,67911.0,67899.0,0.22111075]
[1770464817476,0.30119697,67911.0,67895.0,0.1907895]
[1770464817775,0.30119697,67911.0,67896.0,0.22111082]
[1770464817980,0.30119697,67911.0,67897.0,0.22111082]
[1770464818282,0.30119697,67911.0,67898.0,0.22111082]
[1770464818580,0.30119697,67906.0,67890.0,0.37883743]
[1770464818771,0.30119697,67904.0,67890.0,0.14403947]
[1770464820979,0.30119697,67904.0,67895.0,0.014741]
[1770464821276,0.30119697,67919.0,67906.0,0.014739]
[1770464821883,0.30119697,67919.0,67903.0,0.014739]
[1770464823181,0.30119697,67919.0,67905.0,0.014739]
[1770464824687,0.30119697,67919.0,67902.0,0.01474]
[1770464824880,0.30119697,67912.0,67896.0,0.22005596]
[1770464825080,0.30119697,67912.0,67894.0,0.22005596]
[1770464825294,0.30119697,67912.0,67890.0,0.14403947]
[1770464825295,0.30119697,67912.0,67900.0,0.01474]
[1770464827082,0.30119697,67912.0,67897.0,0.01474]
[1770464827584,0.30119697,67912.0,67899.0,0.01474]
[1770464828580,0.30119697,67912.0,67901.0,0.01474]
[1770464828780,0.31804081,67920.0,67901.0,0.01474]
[1770464829893,0.30480925,67917.0,67901.0,0.01474]
[1770464830692,0.30480925,67917.0,67902.0,0.22110106]
[1770464830894,0.30480925,67917.0,67903.0,0.22110106]
[1770464831092,0.30480925,67917.0,67901.0,0.01474]
[1770464831393,0.30480925,67917.0,67903.0,0.014739]
[1770464832395,0.30480925,67917.0,67904.0,0.22109756]
[1770464832594,0.30480925,67917.0,67903.0,0.014739]
[1770464832794,0.30480925,67917.0,67904.0,0.22109756]
[1770464832995,0.30480925,67917.0,67903.0,0.014739]
[1770464833195,0.30480925,67917.0,67904.0,0.2210976]
[1770464833391,0.30480925,67917.0,67903.0,0.014739]
[1770464833591,0.30480925,67917.0,67904.0,0.2210976]
[1770464833889,0.30480925,67917.0,67903.0,0.014739]
[1770464834087,0.30480925,67917.0,67904.0,0.2210976]
[1770464834286,0.30480925,67917.0,67903.0,0.014739]
[1770464834496,0.30480925,67917.0,67904.0,0.2210976]
[1770464834702,0.014733,67933.0,67897.0,0.22005596]
[1770464834703,0.014735,67923.0,67897.0,0.22005596]
[1770464834892,0.30480925,67909.0,67893.0,0.014741]
[1770464836391,0.30480925,67907.0,67890.0,0.37883743]
[1770464836597,0.30480925,67907.0,67890.0,0.15878147]
[1770464836899,0.30480925,67907.0,67892.0,0.014742]
[1770464837296,0.014739,67906.0,67890.0,0.14403947]
[1770464837593,0.30480925,67905.0,67890.0,0.14403947]
[1770464838397,0.30480925,67902.0,67884.0,0.22005596]
[1770464838599,0.30480925,67897.0,67883.0,0.14994887]
[1770464843001,0.30480925,67897.0,67890.0,0.14461433]
[1770464844101,0.30480925,67895.0,67890.0,0.14461433]
[1770464844296,0.30480925,67895.0,67883.0,0.14994887]
[1770464844693,0.30480925,67895.0,67873.0,0.22005596]
[1770464844898,0.014744,67882.0,67865.0,0.30257782]
[1770464845099,0.014744,67882.0,67866.0,0.014747]
[1770464845300,0.30480925,67884.0,67877.0,4.3e-07]
[1770464845499,0.014745,67877.0,67865.0,0.30257782]
[1770464845700,0.014745,67877.0,67860.0,0.014749]
[1770464845903,0.00011657,67876.0,67860.0,0.014749]
[1770464846102,0.00011657,67876.0,67862.0,0.014748]
[1770464846302,0.00011657,67876.0,67865.0,0.014748]
[1770464846604,0.30492582,67876.0,67859.0,0.014749]
[1770464846906,0.30492582,67876.0,67860.0,0.22121704]
[1770464847108,0.30492582,67876.0,67861.0,0.22121704]
[1770464847300,0.30492582,67876.0,67860.0,0.1447813]
[1770464847502,0.30492582,67876.0,67861.0,0.23596504]
[1770464847709,0.30492582,67876.0,67861.0,0.014748]
[1770464849306,0.014744,67882.0,67867.0,0.45138451]
[1770464849497,0.30480925,67883.0,67868.0,0.30257782]
[1770464850402,0.30480925,67905.0,67873.0,0.30257782]
[1770464850605,0.014742,67893.0,67875.0,0.30257782]
[1770464851004,0.014742,67893.0,67876.0,0.014745]
[1770464853214,0.014741,67896.0,67878.0,0.014745]
[1770464854118,0.30480925,67898.0,67878.0,0.30257782]
[1770464854920,0.014741,67897.0,67878.0,0.30257782]
[1770464855115,0.014741,67897.0,67879.0,0.31732182]
[1770464858030,0.014741,67897.0,67881.0,0.30131963]
[1770464859430,0.30480925,67898.0,67881.0,0.30131963]
[1770464859830,0.01474,67900.0,67884.0,0.28657563]
[1770464860128,0.30807563,67906.0,67886.0,0.28657563]
[1770464860732,0.014739,67904.0,67888.0,0.014742]
[1770464860926,0.014739,67904.0,67888.0,0.30131763]
[1770464862331,0.32281463,67903.0,67887.0,0.014743]
[1770464862527,0.30807563,67893.0,67878.0,0.014745]
[1770464862722,0.30807563,67893.0,67879.0,0.22116917]
[1770464862928,0.30807563,67893.0,67878.0,0.014745]
[1770464863231,0.32281763,67893.0,67875.0,0.19076672]
[1770464863427,0.32281763,67893.0,67876.0,0.22117692]
[1770464863628,0.30807563,67893.0,67877.0,0.30132063]
[1770464864226,0.01474,67899.0,67879.0,0.30131963]
[1770464864428,0.073681,67920.0,67879.0,0.30131963]
[1770464864429,0.30807563,67910.0,67888.0,0.28657563]
[1770464864625,0.014738,67909.0,67889.0,0.30131763]
[1770464865020,0.014739,67905.0,67889.0,0.28657563]
[1770464865226,0.01474,67903.0,67885.0,0.014743]
[1770464865432,0.30807563,67903.0,67887.0,0.014743]
[1770464865731,0.30807563,67903.0,67884.0,0.30131863]
[1770464866030,0.30807563,67903.0,67886.0,0.30131863]
[1770464866232,0.32281563,67902.0,67886.0,0.28657563]
[1770464866625,0.30807563,67902.0,67887.0,0.014743]
[1770464867122,0.30807563,67902.0,67886.0,0.28657563]
[1770464868529,0.32281563,67901.0,67886.0,0.11757898]
[1770464869629,0.01474,67899.0,67886.0,0.11757898]
[1770464869824,0.30807563,67893.0,67880.0,0.11757898]
[1770464870132,0.014743,67887.0,67874.0,0.11757898]
[1770464870835,0.32281863,67887.0,67874.0,0.11757898]
[1770464873437,0.30807563,67887.0,67874.0,0.11757898]
[1770464874333,0.30807563,67887.0,67873.0,0.11757898]
[1770464874724,0.014742,67890.0,67874.0,0.30132163]
[1770464874928,0.014742,67890.0,67875.0,0.28657563]
[1770464875132,0.014742,67889.0,67875.0,0.28657563]
[1770464875335,0.014743,67887.0,67873.0,0.11757898]
[1770464875838,0.30807563,67885.0,67872.0,0.11757898]
[1770464876039,0.30807563,67885.0,67868.0,0.11757898]
[1770464876336,0.014744,67882.0,67868.0,0.11757898]
[1770464876733,0.014744,67882.0,67867.0,0.26638567]
[1770464876937,0.32281963,67882.0,67867.0,0.26638567]
[1770464877236,0.30807563,67879.0,67867.0,0.14880669]
[1770464880632,0.014744,67883.0,67867.0,0.14880669]
[1770464880938,0.014744,67883.0,67868.0,0.28657563]
[1770464881439,0.30807563,67892.0,67872.0,0.28657563]
[1770464881627,0.30807563,67892.0,67869.0,0.33877996]
[1770464881628,0.014742,67890.0,67873.0,0.30132163]
[1770464882937,0.30807563,67892.0,67876.0,0.28657563]
[1770464883135,0.014742,67893.0,67876.0,0.28657563]
[1770464883336,0.014741,67896.0,67880.0,0.28657563]
[1770464883642,0.014741,67894.0,67880.0,0.28657563]
[1770464885344,0.014742,67890.0,67875.0,0.11757898]
[1770464885539,0.014739,67906.0,67873.0,0.13232498]
[1770464885540,0.014743,67889.0,67873.0,0.13232498]
[1770464885846,0.30522966,67889.0,67873.0,0.014746]
[1770464886740,0.30522966,67889.0,67875.0,0.014745]
[1770464886945,0.29048666,67889.0,67875.0,0.014745]
[1770464887548,0.014742,67892.0,67875.0,0.31596133]
[1770464888746,0.014742,67890.0,67875.0,0.31596133]
[1770464891355,0.27457377,67889.0,67872.0,0.11757898]
[1770464892353,0.014744,67880.0,67869.0,0.11757898]
[1770464892653,0.014744,67880.0,67868.0,0.11757898]
[1770464893452,0.28931777,67880.0,67868.0,0.11757898]
[1770464893652,0.28931777,67880.0,67867.0,0.26638567]
[1770464895152,0.28931777,67880.0,67867.0,0.14880669]
[1770464895352,0.27457377,67880.0,67867.0,0.14880669]
[1770464896249,0.014745,67876.0,67867.0,0.14880669]
[1770464896645,0.014746,67874.0,67867.0,0.14880669]
[1770464896847,0.27457377,67868.0,67861.0,0.11757898]
[1770464897052,0.014749,67859.0,67848.0,0.45527393]
[1770464897356,0.014749,67859.0,67849.0,0.22126399]
[1770464897557,0.014749,67859.0,67848.0,0.27925221]
[1770464897752,0.014749,67857.0,67848.0,0.27925221]
[1770464897949,0.014749,67857.0,67843.0,0.014752]
[1770464898154,0.014749,67857.0,67849.0,0.14899289]
[1770464900551,0.014749,67857.0,67856.0,6.1e-07]
[1770464900850,0.014749,67857.0,67849.0,0.14899289]
[1770464901554,0.015749,67857.0,67849.0,0.14899289]
[1770464902247,0.015749,67857.0,67842.0,0.00018694]
[1770464902248,0.014751,67849.0,67842.0,0.00018694]
[1770464902755,0.014751,67849.0,67845.0,0.14750837]
[1770464903052,0.27457377,67856.0,67845.0,0.14750837]
[1770464903053,0.014751,67852.0,67845.0,0.14750837]
[1770464903254,0.27457377,67856.0,67845.0,0.14750837]
[1770464903255,0.01475,67855.0,67845.0,0.14750837]
[1770464903752,0.014751,67848.0,67842.0,9.4e-07]
[1770464903954,0.014752,67846.0,67838.0,0.1454627]
[1770464904851,0.00013017,67845.0,67838.0,0.1454627]
[1770464905246,0.014752,67844.0,67838.0,7e-07]
[1770464905447,0.00013017,67845.0,67821.0,0.27925221]
[1770464905448,0.27457377,67839.0,67821.0,0.27925221]
[1770464905950,0.27457377,67839.0,67831.0,1.5e-07]
[1770464906553,0.014754,67836.0,67831.0,1.5e-07]
[1770464906949,0.27457377,67838.0,67824.0,0.14556648]
[1770464907148,0.27457377,67838.0,67821.0,0.27925221]
[1770464907550,0.014754,67835.0,67821.0,0.27925221]
[1770464907957,0.015754,67836.0,67821.0,0.27925221]
[1770464908656,0.014754,67836.0,67822.0,0.42532439]
[1770464909052,0.014754,67836.0,67823.0,0.27925221]
[1770464909452,0.014753,67839.0,67823.0,0.27925221]
[1770464909653,0.014753,67839.0,67829.0,0.42865203]
[1770464912150,0.014753,67839.0,67829.0,0.14939982]
[1770464913362,0.00013017,67845.0,67834.0,0.27925221]
[1770464913560,0.014752,67844.0,67834.0,0.27925221]
[1770464915459,0.27470394,67845.0,67829.0,0.14939982]
[1770464915651,0.014755,67833.0,67829.0,8.2e-07]
[1770464915860,0.014754,67836.0,67829.0,8.2e-07]
[1770464916159,0.014753,67839.0,67829.0,8.2e-07]
[1770464916555,0.00013017,67845.0,67829.0,0.28914338]
[1770464916556,0.014753,67842.0,67829.0,0.28914338]
[1770464920858,0.014749,67859.0,67833.0,0.28914256]
[1770464921058,0.014751,67848.0,67833.0,0.28914256]
[1770464921259,0.30290307,67853.0,67833.0,0.28914256]
[1770464921458,0.014753,67840.0,67829.0,8.2e-07]
[1770464921662,0.014755,67831.0,67822.0,0.14607218]
[1770464921868,0.30290307,67829.0,67813.0,0.0001235]
[1770464922069,0.014756,67829.0,67817.0,0.14971301]
[1770464922367,0.30290307,67836.0,67817.0,0.14971301]
[1770464922368,0.014754,67835.0,67818.0,0.28914256]
[1770464922569,0.014754,67836.0,67820.0,0.28914256]
[1770464922969,0.30290307,67853.0,67827.0,0.28914256]
[1770464923470,0.014753,67841.0,67827.0,0.28914256]
[1770464925071,0.014752,67844.0,67827.0,0.30389856]
[1770464925772,0.30290307,67851.0,67827.0,0.28914256]
[1770464926965,0.014752,67844.0,67829.0,0.28914256]
[1770464927563,0.014752,67847.0,67834.0,0.28914256]
[1770464927872,0.30290307,67872.0,67842.0,0.28914256]
[1770464928069,0.30290307,67864.0,67844.0,0.28914256]
[1770464928367,0.01475,67857.0,67844.0,0.28914256]
[1770464930473,0.014751,67852.0,67844.0,0.28914256]
[1770464930876,0.30290307,67864.0,67838.0,0.28914256]
[1770464931272,0.014749,67859.0,67844.0,0.28914256]
[1770464931774,0.014748,67862.0,67847.0,0.014751]
[1770464931975,0.014748,67862.0,67848.0,0.28914256]
[1770464932176,0.014749,67860.0,67848.0,0.28914256]
[1770464932772,0.01475,67856.0,67836.0,0.28914256]
[1770464932973,0.01475,67856.0,67838.0,0.28914256]
[1770464933275,0.014751,67851.0,67838.0,0.28914256]
[1770464934084,0.014752,67846.0,67838.0,0.28914256]
[1770464934775,0.30290307,67860.0,67838.0,0.28914256]
[1770464934971,0.014752,67854.0,67838.0,0.28914256]
[1770464935168,0.014753,67839.0,67831.0,0.28914256]
[1770464935380,0.30290307,67849.0,67831.0,5.6e-07]
[1770464935875,0.30290307,67843.0,67818.0,0.28914256]
[1770464936180,0.31765507,67843.0,67818.0,0.28914256]
[1770464936476,0.014756,67829.0,67818.0,0.28914256]
[1770464936673,0.014756,67827.0,67818.0,0.28914256]
[1770464937179,0.014753,67840.0,67818.0,0.28914256]
[1770464937380,0.014756,67828.0,67818.0,0.28914256]
[1770464937684,0.34716507,67839.0,67818.0,0.28914256]
[1770464937880,0.014757,67824.0,67817.0,0.14971301]
[1770464938276,0.044262,67823.0,67817.0,0.14971301]
[1770464938683,0.044262,67822.0,67817.0,1e-08]
[1770464938878,0.30290307,67828.0,67817.0,1e-08]
[1770464939073,0.044262,67827.0,67817.0,1e-08]
[1770464939583,0.014757,67823.0,67817.0,1e-08]
[1770464939973,0.044262,67822.0,67817.0,1e-08]
[1770464940174,0.30290307,67828.0,67817.0,1e-08]
[1770464940175,0.014753,67840.0,67817.0,0.2220293]
[1770464940380,0.011753,67840.0,67817.0,0.2220293]
[1770464941481,0.014755,67833.0,67817.0,0.2220293]
[1770464941780,0.30290307,67849.0,67823.0,0.23725938]
[1770464941981,0.014753,67841.0,67826.0,0.22243233]
[1770464942686,0.014752,67846.0,67830.0,0.22323913]
[1770464942879,0.014751,67849.0,67830.0,0.22323913]
[1770464944482,0.30290307,67858.0,67834.0,0.2233946]
[1770464945084,0.01475,67853.0,67836.0,0.23152]
[1770464945385,0.30290307,67856.0,67836.0,0.23152]
[1770464945586,0.014752,67846.0,67829.0,0.23151134]
[1770464945776,0.30290307,67850.0,67829.0,0.23151134]
[1770464945972,0.014752,67844.0,67829.0,0.23151134]
[1770464946684,0.014753,67842.0,67829.0,0.23151134]
[1770464947481,0.014753,67842.0,67818.0,0.22049571]
[1770464947482,0.014758,67819.0,67813.0,0.23094631]
[1770464947683,0.014758,67819.0,67810.0,0.15022942]
[1770464947876,0.014758,67819.0,67817.0,1e-08]
[1770464948075,0.014758,67819.0,67806.0,0.12737474]
[1770464948688,0.0001235,67818.0,67806.0,0.12737474]
[1770464949081,0.0001235,67818.0,67804.0,0.014761]
[1770464949082,0.0001235,67818.0,67804.0,0.14559445]
[1770464949681,0.014759,67815.0,67804.0,0.14559445]
[1770464950183,0.014752,67814.0,67804.0,0.14559445]
[1770464950579,0.014758,67816.0,67804.0,0.14559445]
[1770464951781,0.0001235,67818.0,67805.0,0.1348042]
[1770464953676,0.014756,67825.0,67812.0,0.12370165]
[1770464953876,0.014757,67822.0,67811.0,0.15057765]
[1770464954085,0.29934099,67824.0,67811.0,0.15057765]
[1770464954476,0.014758,67818.0,67811.0,0.15057765]
[1770464955086,0.014757,67821.0,67811.0,0.15057765]
[1770464955778,0.014758,67819.0,67811.0,0.15057765]
[1770464955982,0.014758,67819.0,67805.0,0.12370165]
[1770464955983,0.014759,67815.0,67805.0,0.12370165]
[1770464959279,0.014759,67813.0,67804.0,0.14559445]
[1770464961288,0.29934099,67818.0,67791.0,0.13556542]
[1770464961489,0.29934099,67815.0,67793.0,0.14473269]
[1770464961691,0.014761,67805.0,67793.0,0.14473269]
[1770464961986,0.29934099,67813.0,67793.0,0.14473269]
[1770464962189,0.014761,67802.0,67793.0,0.14473269]
[1770464962688,0.29934099,67805.0,67793.0,0.14473269]
[1770464962891,0.014761,67802.0,67793.0,0.14473269]
[1770464963388,0.014762,67800.0,67793.0,0.14473269]
[1770464964089,0.014758,67818.0,67778.0,0.16597155]
[1770464964090,0.014764,67791.0,67778.0,0.16597155]
[1770464964293,0.014764,67791.0,67767.0,0.11733951]
[1770464964294,0.014764,67788.0,67774.0,0.27605052]
[1770464964593,0.014764,67788.0,67774.0,0.12724646]
[1770464964787,0.014765,67786.0,67767.0,0.27595137]
[1770464964993,0.29934099,67787.0,67768.0,0.014769]
[1770464965197,0.01489417,67786.0,67770.0,0.014768]
[1770464965794,0.01489417,67786.0,67772.0,0.13157527]
[1770464965795,0.00012917,67786.0,67772.0,0.13157527]
[1770464966004,0.29947016,67786.0,67769.0,0.014768]
[1770464966394,0.00012917,67786.0,67770.0,0.13146546]
[1770464966591,0.00012917,67786.0,67774.0,0.13146546]
[1770464966789,0.01489417,67786.0,67768.0,0.12758607]
[1770464966994,0.01489417,67786.0,67769.0,0.014768]
[1770464967393,0.01489417,67786.0,67774.0,0.15020244]
[1770464967698,0.01489417,67786.0,67769.0,0.014768]
[1770464967892,0.01489417,67786.0,67769.0,0.142234]
[1770464969186,0.00012917,67786.0,67771.0,0.014768]
[1770464969595,0.00012917,67786.0,67773.0,0.014767]
[1770464970794,0.014762,67801.0,67781.0,0.12784389]
[1770464971289,0.014763,67793.0,67783.0,0.12784389]
[1770464971793,0.014763,67793.0,67778.0,0.014766]
[1770464972893,0.014762,67799.0,67778.0,0.13547236]
[1770464973091,0.29934099,67803.0,67778.0,0.13547236]
[1770464973296,0.29934099,67803.0,67781.0,0.13535923]
[1770464973501,0.014761,67803.0,67787.0,0.014765]
[1770464973696,0.014761,67803.0,67788.0,0.13535923]
[1770464974001,0.29934099,67807.0,67788.0,0.13535923]
[1770464974202,0.29934099,67806.0,67788.0,0.13535923]
[1770464974405,0.014762,67798.0,67783.0,0.014765]
[1770464975601,0.014762,67798.0,67783.0,0.14633075]
[1770464975997,0.29934099,67806.0,67785.0,0.1314415]
[1770464976303,0.014762,67799.0,67785.0,0.1314415]
[1770464977404,0.014762,67800.0,67787.0,0.1534817]
[1770464977806,0.014762,67798.0,67787.0,0.1534817]
[1770464978607,0.29934099,67806.0,67787.0,0.1534817]
[1770464978608,0.014762,67801.0,67787.0,0.1534817]
[1770464979107,0.014761,67804.0,67788.0,0.014764]
[1770464979304,0.014761,67804.0,67788.0,0.014714]
[1770464979512,0.014761,67805.0,67791.0,0.14924675]
[1770464979809,0.014761,67805.0,67790.0,0.014764]
[1770464980205,0.01476,67808.0,67794.0,0.014763]
[1770464980511,0.014759,67811.0,67796.0,0.14911877]
[1770464981210,0.01476,67809.0,67796.0,0.14911877]
[1770464982306,0.28928343,67815.0,67796.0,0.14911877]
[1770464983515,0.01476,67807.0,67796.0,0.14911877]
[1770464984711,0.014758,67819.0,67789.0,0.15285655]
[1770464984712,0.28928343,67809.0,67789.0,0.15285655]
[1770464984916,0.014759,67814.0,67782.0,0.11733951]
[1770464984917,0.28928343,67802.0,67782.0,0.16762255]
[1770464986316,0.28928343,67802.0,67775.0,0.014767]
[1770464986317,0.014764,67788.0,67775.0,0.014767]
[1770464986517,0.014764,67791.0,67775.0,0.014767]
[1770464986919,0.014764,67789.0,67775.0,0.16791362]
[1770464987110,0.014765,67787.0,67775.0,0.15314662]
[1770464987311,0.014765,67787.0,67774.0,0.1589161]
[1770464988315,0.014765,67787.0,67774.0,0.1441491]
[1770464988818,0.014765,67787.0,67775.0,0.15367839]
[1770464989919,0.014764,67790.0,67775.0,0.16844539]
[1770464991220,0.014764,67788.0,67775.0,0.16844539]
[1770464991408,0.014764,67788.0,67775.0,0.15367839]
[1770464993724,0.014764,67791.0,67776.0,0.014767]
[1770464993920,0.014761,67802.0,67787.0,0.15290015]
[1770464994113,0.28928343,67804.0,67787.0,0.15290015]
[1770464995315,0.014758,67817.0,67777.0,0.11733951]
[1770464995316,0.014763,67793.0,67780.0,0.014766]
[1770464995520,0.014763,67796.0,67780.0,0.014766]
[1770464996225,0.014764,67788.0,67777.0,0.15047679]
[1770464997629,0.014764,67792.0,67779.0,0.14870515]
[1770464997930,0.014763,67795.0,67780.0,0.16345786]
[1770464998230,0.014763,67795.0,67783.0,0.14869186]
[1770464998722,0.28928343,67821.0,67783.0,0.14869186]
[1770464998924,0.28928343,67816.0,67793.0,0.14967105]
[1770464999116,0.014761,67806.0,67793.0,0.14967105]
[1770465000124,0.30404443,67806.0,67785.0,0.16430273]
[1770465000527,0.28928343,67801.0,67785.0,0.14953773]
[1770465000731,0.28928343,67801.0,67781.0,0.16418375]
[1770465000923,0.28928343,67801.0,67784.0,0.014765]
[1770465001122,0.014762,67800.0,67784.0,0.014765]
[1770465001326,0.28928343,67801.0,67779.0,0.014766]
[1770465001527,0.28928343,67801.0,67779.0,0.15815636]
[1770465001725,0.014761,67803.0,67784.0,0.17292136]
[1770465001935,0.30404343,67809.0,67790.0,0.15814173]
[1770465002229,0.01476,67807.0,67790.0,0.15814173]
[1770465002430,0.28928343,67809.0,67785.0,0.014765]
[1770465003024,0.28928343,67801.0,67778.0,0.014766]
[1770465003225,0.014763,67794.0,67776.0,0.15168142]
[1770465004238,0.014763,67794.0,67777.0,0.014767]
[1770465004624,0.014763,67794.0,67777.0,0.16619377]
[1770465005927,0.29615162,67791.0,67774.0,0.1441491]
[1770465006121,0.29615162,67789.0,67774.0,0.1441491]
[1770465006920,0.014765,67784.0,67774.0,0.1441491]
[1770465007128,0.29615162,67789.0,67774.0,0.1589161]
[1770465007622,0.29615162,67789.0,67774.0,0.1451491]
[1770465007623,0.014764,67788.0,67774.0,0.1451491]
[1770465007820,0.014764,67791.0,67774.0,0.29831118]
[1770465008131,0.014764,67789.0,67774.0,0.29831118]
[1770465008520,0.014763,67795.0,67779.0,0.014766]
[1770465008727,0.014763,67795.0,67781.0,0.014766]
[1770465008927,0.29615162,67796.0,67781.0,0.014766]
[1770465009230,0.014762,67797.0,67783.0,0.12990806]
[1770465009429,0.014762,67800.0,67785.0,0.12978661]
[1770465009932,0.014763,67796.0,67785.0,0.12978661]
[1770465010537,0.014763,67794.0,67780.0,0.014766]
[1770465010830,0.014762,67800.0,67778.0,0.13689283]
[1770465011044,0.014762,67798.0,67783.0,0.15165783]
[1770465011232,0.3083751,67802.0,67779.0,0.014766]
[1770465011628,0.3083751,67799.0,67779.0,0.014766]
[1770465012429,0.014763,67795.0,67779.0,0.014766]
[1770465012630,0.014763,67795.0,67781.0,0.15795493]
[1770465012830,0.014762,67798.0,67783.0,0.014765]
[1770465013034,0.014762,67798.0,67783.0,0.15795393]
[1770465013235,0.014763,67796.0,67783.0,0.14318893]
[1770465014031,0.3083751,67809.0,67783.0,0.14318893]
[1770465014235,0.3083751,67807.0,67787.0,0.014764]
[1770465014830,0.014761,67803.0,67789.0,0.014764]
[1770465015426,0.3083751,67824.0,67802.0,0.13382567]
[1770465015630,0.3083751,67822.0,67802.0,0.13382567]
[1770465015839,0.014758,67818.0,67802.0,0.14858667]
[1770465016230,0.014758,67816.0,67802.0,0.13382567]
[1770465016431,0.01476,67807.0,67790.0,0.11733951]
[1770465016635,0.014758,67818.0,67790.0,0.11733951]
[1770465016636,0.3083751,67815.0,67802.0,0.014761]
[1770465017237,0.014755,67834.0,67806.0,0.01476]
[1770465017238,0.3231321,67822.0,67806.0,0.01476]
[1770465017635,0.3083751,67822.0,67810.0,0.01476]
[1770465018031,0.3083751,67840.0,67814.0,0.014758]
[1770465018226,0.3083751,67837.0,67814.0,0.014758]
[1770465018638,0.3083751,67834.0,67814.0,0.014758]
[1770465019945,0.3083751,67803.0,67790.0,0.0287173]
[1770465020136,0.24751624,67791.0,67768.0,0.29732024]
[1770465020336,0.088566,67806.0,67768.0,0.29732024]
[1770465020337,0.014765,67786.0,67768.0,0.29732024]
[1770465020847,0.24739337,67788.0,67768.0,0.29732024]
[1770465021039,0.01489237,67787.0,67769.0,0.31208824]
[1770465022436,0.014766,67781.0,67769.0,0.29732024]
[1770465022638,0.26962067,67787.0,67761.0,0.29732024]
[1770465022939,0.014766,67779.0,67761.0,0.29732024]
[1770465023338,0.014766,67783.0,67763.0,0.29732024]
[1770465023739,0.014766,67783.0,67766.0,0.14825622]
[1770465023941,0.014765,67786.0,67767.0,0.31208924]
[1770465026342,0.014766,67782.0,67767.0,0.29732024]
[1770465026542,0.00012737,67787.0,67767.0,2.4e-07]
[1770465026543,0.014768,67773.0,67767.0,2.4e-07]
[1770465026943,0.014767,67776.0,67767.0,2.4e-07]
[1770465027137,0.30850247,67787.0,67767.0,2.4e-07]
[1770465027339,0.3083751,67795.0,67769.0,0.29732024]
[1770465027544,0.3083751,67790.0,67769.0,0.29732024]
[1770465027745,0.014765,67787.0,67769.0,0.31208824]
[1770465028442,0.3083751,67790.0,67772.0,0.014768]
[1770465028941,0.014764,67791.0,67775.0,0.29732024]
[1770465030346,0.014764,67789.0,67775.0,0.29732024]
[1770465031746,0.3231391,67792.0,67775.0,0.29732024]
[1770465033146,0.3083751,67787.0,67767.0,0.29732024]
[1770465033444,0.014766,67781.0,67767.0,0.29732024]
[1770465033846,0.014765,67784.0,67767.0,0.29732024]
[1770465034043,0.014765,67784.0,67767.0,0.31208924]
[1770465034648,0.014765,67787.0,67767.0,0.31208924]
[1770465035144,0.014764,67790.0,67772.0,0.29732024]
[1770465036448,0.014764,67790.0,67773.0,0.35221713]
[1770465036642,0.32237257,67793.0,67773.0,0.33744913]
[1770465036848,0.014765,67786.0,67768.0,0.014769]
[1770465037248,0.014764,67788.0,67771.0,0.33744913]
[1770465037447,0.014765,67786.0,67774.0,0.33744913]
[1770465037850,0.014764,67789.0,67774.0,0.33744913]
[1770465040550,0.014765,67787.0,67772.0,0.014768]
[1770465041553,0.014765,67787.0,67772.0,0.35221713]
[1770465041855,0.32237257,67812.0,67791.0,0.33744913]
[1770465042155,0.014757,67821.0,67766.0,0.14897036]
[1770465042156,0.32237257,67802.0,67775.0,0.33744913]
[1770465042350,0.014764,67788.0,67775.0,0.33744913]
[1770465042657,0.014763,67795.0,67781.0,0.014766]
[1770465042846,0.014761,67802.0,67786.0,0.33744913]
[1770465043247,0.21852423,67805.0,67786.0,0.33744913]
[1770465043447,0.32237257,67837.0,67820.0,0.014757]
[1770465043758,0.014752,67847.0,67829.0,0.014755]
[1770465044056,0.014752,67844.0,67826.0,0.014756]
[1770465044351,0.014753,67842.0,67825.0,0.014756]
[1770465044543,0.014751,67848.0,67829.0,0.014755]
[1770465044749,0.32237257,67851.0,67833.0,0.014755]
[1770465044750,0.014751,67850.0,67833.0,0.014755]
[1770465045052,0.014751,67850.0,67832.0,0.014755]
[1770465045253,0.32237257,67851.0,67832.0,0.014755]
[1770465045557,0.01475,67853.0,67834.0,0.014754]
[1770465045855,0.01475,67853.0,67836.0,0.014754]
[1770465046453,0.01475,67853.0,67833.0,0.014754]
[1770465046652,0.32237257,67852.0,67830.0,0.14677826]